[Event "Early-Titled-Tuesday-Blitz-February-20-2024"]
[Site "Chess.com"]
[Date "2024.02.20"]
[Round "5"]
[White "Chesstiger64"]
[Black "ShieldingOff"]
[Result "0-1"]
[WhiteElo "2323"]
[BlackElo "2230"]
[TimeControl "180+1"]
[EndTime "8:54:44 PST"]
[Termination "ShieldingOff won by checkmate"]

1. d4 {[%clk 0:03:00.9]} 1... c5 {[%clk 0:02:58.8]} 2. d5 {[%clk 0:02:59.7]}
2... e5 {[%clk 0:02:58.7]} 3. e4 {[%clk 0:02:59.4]} 3... d6 {[%clk 0:02:58.8]}
4. Be2 {[%clk 0:02:59.7]} 4... Be7 {[%clk 0:02:59.1]} 5. Nf3 {[%clk 0:03:00.2]}
5... Bg4 {[%clk 0:02:57.7]} 6. Nfd2 {[%clk 0:03:00.3]} 6... Bxe2 {[%clk
0:02:54.5]} 7. Qxe2 {[%clk 0:03:01.2]} 7... Bg5 {[%clk 0:02:53.6]} 8. Qb5+
{[%clk 0:02:54.4]} 8... Qd7 {[%clk 0:02:53.7]} 9. Qxd7+ {[%clk 0:02:54.3]} 9...
Nxd7 {[%clk 0:02:53.6]} 10. Nc4 {[%clk 0:02:54.2]} 10... Bxc1 {[%clk 0:02:46]}
11. Nxd6+ {[%clk 0:02:53.3]} 11... Ke7 {[%clk 0:02:45.7]} 12. Nf5+ {[%clk
0:02:53.1]} 12... Kf8 {[%clk 0:02:39.7]} 13. Nd2 {[%clk 0:02:44.3]} 13... Bxd2+
{[%clk 0:02:38]} 14. Kxd2 {[%clk 0:02:44.8]} 14... Ne7 {[%clk 0:02:27.1]} 15.
Nd6 {[%clk 0:02:43.2]} 15... b6 {[%clk 0:02:21.5]} 16. c4 {[%clk 0:02:43.1]}
16... Nf6 {[%clk 0:02:15.1]} 17. f3 {[%clk 0:02:41.4]} 17... a6 {[%clk
0:02:10.7]} 18. b4 {[%clk 0:02:38.9]} 18... cxb4 {[%clk 0:01:36.6]} 19. Rhb1
{[%clk 0:02:39.5]} 19... Rd8 {[%clk 0:01:19.4]} 20. Nb7 {[%clk 0:02:08.2]} 20...
Rd7 {[%clk 0:01:16.8]} 21. Rxb4 {[%clk 0:02:08.6]} 21... Rxb7 {[%clk 0:01:14.8]}
22. c5 {[%clk 0:02:08.9]} 22... Nexd5 {[%clk 0:00:59.3]} 23. exd5 {[%clk
0:02:00.6]} 23... Nxd5 {[%clk 0:00:58.7]} 24. Re4 {[%clk 0:01:52.3]} 24... f6
{[%clk 0:00:42.4]} 25. cxb6 {[%clk 0:01:51.1]} 25... Rxb6 {[%clk 0:00:40.5]} 26.
Rc1 {[%clk 0:01:50.6]} 26... Kf7 {[%clk 0:00:39.2]} 27. Rc2 {[%clk 0:01:44.2]}
27... Rd8 {[%clk 0:00:38.6]} 28. Ke2 {[%clk 0:01:40.8]} 28... Nf4+ {[%clk
0:00:35.6]} 29. Kf2 {[%clk 0:01:39.5]} 29... Rd7 {[%clk 0:00:34.4]} 30. Ra4
{[%clk 0:01:36.9]} 30... Nd3+ {[%clk 0:00:30.9]} 31. Kg3 {[%clk 0:01:34.5]}
31... Kg6 {[%clk 0:00:28.7]} 32. h4 {[%clk 0:01:34]} 32... h5 {[%clk 0:00:28.4]}
33. Rd2 {[%clk 0:01:31.6]} 33... Rbd6 {[%clk 0:00:26.1]} 34. Rd1 {[%clk
0:01:29.6]} 34... Nf4 {[%clk 0:00:25.4]} 35. Rxd6 {[%clk 0:01:27.2]} 35... Rxd6
{[%clk 0:00:25.6]} 36. Kf2 {[%clk 0:01:21.4]} 36... Rd2+ {[%clk 0:00:25.3]} 37.
Ke3 {[%clk 0:01:21.5]} 37... Rxg2 {[%clk 0:00:24]} 38. Rxa6 {[%clk 0:01:20.7]}
38... Re2# {[%clk 0:00:22.8]} 0-1

[Event "Early-Titled-Tuesday-Blitz-February-20-2024"]
[Site "Chess.com"]
[Date "2024.02.20"]
[Round "5"]
[White "Schachmalanders"]
[Black "DefiantChair"]
[Result "1-0"]
[WhiteElo "2468"]
[BlackElo "2574"]
[TimeControl "180+1"]
[EndTime "8:54:45 PST"]
[Termination "Schachmalanders won by resignation"]

1. e4 {[%clk 0:03:00.9]} 1... c5 {[%clk 0:02:58.1]} 2. Nc3 {[%clk 0:03:00.6]}
2... d6 {[%clk 0:02:58.1]} 3. g3 {[%clk 0:03:00.9]} 3... g6 {[%clk 0:02:57.9]}
4. Bg2 {[%clk 0:03:01.4]} 4... Bg7 {[%clk 0:02:58.2]} 5. Nge2 {[%clk 0:03:02.1]}
5... Nc6 {[%clk 0:02:57.7]} 6. d3 {[%clk 0:03:02.5]} 6... e6 {[%clk 0:02:57.7]}
7. Be3 {[%clk 0:03:02.8]} 7... Nge7 {[%clk 0:02:57.9]} 8. Qd2 {[%clk 0:03:03.5]}
8... O-O {[%clk 0:02:57.6]} 9. Bh6 {[%clk 0:03:03.1]} 9... Rb8 {[%clk
0:02:53.4]} 10. h4 {[%clk 0:03:02.5]} 10... f6 {[%clk 0:02:53.2]} 11. Bxg7
{[%clk 0:03:00.1]} 11... Kxg7 {[%clk 0:02:53.9]} 12. h5 {[%clk 0:03:00.8]} 12...
g5 {[%clk 0:02:54.5]} 13. f4 {[%clk 0:03:00.9]} 13... e5 {[%clk 0:02:54.8]} 14.
fxg5 {[%clk 0:02:59.1]} 14... Ng8 {[%clk 0:02:52.1]} 15. gxf6+ {[%clk
0:02:57.5]} 15... Nxf6 {[%clk 0:02:48.3]} 16. h6+ {[%clk 0:02:54.6]} 16... Kh8
{[%clk 0:02:48.3]} 17. O-O-O {[%clk 0:02:55]} 17... Be6 {[%clk 0:02:47.8]} 18.
Rdf1 {[%clk 0:02:54.9]} 18... Qe7 {[%clk 0:02:46.6]} 19. Nd5 {[%clk 0:02:40.3]}
19... Bxd5 {[%clk 0:02:45.6]} 20. exd5 {[%clk 0:02:40.6]} 20... Nd4 {[%clk
0:02:42.5]} 21. Nxd4 {[%clk 0:02:40.2]} 21... cxd4 {[%clk 0:02:43.4]} 22. Qg5
{[%clk 0:02:27.2]} 22... Nxd5 {[%clk 0:02:40.9]} 23. Qg7+ {[%clk 0:02:25.3]}
23... Qxg7 {[%clk 0:02:40.5]} 24. hxg7+ {[%clk 0:02:26.2]} 24... Kxg7 {[%clk
0:02:41.4]} 25. Bxd5 {[%clk 0:02:26.2]} 25... b5 {[%clk 0:02:41.6]} 26. Be4
{[%clk 0:02:24.7]} 26... h6 {[%clk 0:02:41.5]} 27. Bg2 {[%clk 0:02:13.4]} 27...
b4 {[%clk 0:02:40.5]} 28. Rxf8 {[%clk 0:02:13.4]} 28... Rxf8 {[%clk 0:02:40.7]}
29. Rf1 {[%clk 0:02:14.3]} 29... Rb8 {[%clk 0:02:39.8]} 30. Bd5 {[%clk
0:02:13.1]} 30... Kg6 {[%clk 0:02:39.9]} 31. Be4+ {[%clk 0:02:01.6]} 31... Kg7
{[%clk 0:02:39.8]} 32. Bd5 {[%clk 0:01:49.8]} 32... Kg6 {[%clk 0:02:36.9]} 33.
Rf7 {[%clk 0:01:50.3]} 33... Rb5 {[%clk 0:02:36]} 34. Be6 {[%clk 0:01:50.8]}
34... Ra5 {[%clk 0:02:31.6]} 35. Rb7 {[%clk 0:01:48.9]} 35... Kf6 {[%clk
0:02:30.2]} 36. Bb3 {[%clk 0:01:45.7]} 36... Kf5 {[%clk 0:02:30]} 37. Rxb4
{[%clk 0:01:42.3]} 37... Kg4 {[%clk 0:02:30]} 38. Rb8 {[%clk 0:01:40.1]} 38...
Kxg3 {[%clk 0:02:30.1]} 39. Rh8 {[%clk 0:01:40.4]} 39... d5 {[%clk 0:02:27.5]}
40. Rxh6 {[%clk 0:01:37.7]} 40... e4 {[%clk 0:02:28.1]} 41. Rh5 {[%clk
0:01:31.6]} 41... e3 {[%clk 0:02:28]} 42. c3 {[%clk 0:01:25.1]} 42... Ra6 {[%clk
0:02:24.7]} 43. Re5 {[%clk 0:01:20.1]} 43... Kf4 {[%clk 0:02:17.2]} 44. cxd4
{[%clk 0:01:20.1]} 44... Rh6 {[%clk 0:02:13]} 45. Bxd5 {[%clk 0:01:19.3]} 45...
Rh2 {[%clk 0:02:06.7]} 46. Re4+ {[%clk 0:01:18.7]} 46... Kf5 {[%clk 0:01:53]}
47. Rxe3 {[%clk 0:01:18]} 47... Kf6 {[%clk 0:01:52]} 48. Re6+ {[%clk 0:01:13.7]}
48... Kf5 {[%clk 0:01:51.4]} 49. Re7 {[%clk 0:01:14.1]} 49... Kf4 {[%clk
0:01:50.5]} 50. a4 {[%clk 0:01:08.5]} 50... a5 {[%clk 0:01:49.8]} 51. Kb1 {[%clk
0:01:07.1]} 51... Rd2 {[%clk 0:01:48.8]} 52. Bc4 {[%clk 0:01:06.8]} 52... Rh2
{[%clk 0:01:46.6]} 53. d5 {[%clk 0:01:06.8]} 53... Rh6 {[%clk 0:01:46]} 54. Ra7
{[%clk 0:01:04.9]} 54... Ke5 {[%clk 0:01:45.5]} 55. Rxa5 {[%clk 0:01:05]} 55...
Kd4 {[%clk 0:01:45.8]} 56. d6 {[%clk 0:01:04.2]} 56... Rh8 {[%clk 0:01:44.1]}
57. d7 {[%clk 0:01:03.6]} 57... Rb8 {[%clk 0:01:40.8]} 58. Rd5+ {[%clk 0:01:02]}
58... Ke3 {[%clk 0:01:41.1]} 59. d8=Q {[%clk 0:01:02.9]} 1-0

[Event "Early-Titled-Tuesday-Blitz-February-20-2024"]
[Site "Chess.com"]
[Date "2024.02.20"]
[Round "5"]
[White "annamaja"]
[Black "janhelmer03"]
[Result "1-0"]
[WhiteElo "2389"]
[BlackElo "2174"]
[TimeControl "180+1"]
[EndTime "8:54:47 PST"]
[Termination "annamaja won on time"]

1. e4 {[%clk 0:03:00.9]} 1... c5 {[%clk 0:02:59.7]} 2. Nf3 {[%clk 0:03:00.9]}
2... Nc6 {[%clk 0:02:59.7]} 3. Bb5 {[%clk 0:03:00]} 3... Nf6 {[%clk 0:02:59.2]}
4. Bxc6 {[%clk 0:02:56.9]} 4... bxc6 {[%clk 0:02:52.6]} 5. d3 {[%clk 0:02:56.2]}
5... g6 {[%clk 0:02:51.8]} 6. O-O {[%clk 0:02:55.5]} 6... Bg7 {[%clk 0:02:51.9]}
7. Re1 {[%clk 0:02:55.8]} 7... O-O {[%clk 0:02:50.6]} 8. Nc3 {[%clk 0:02:53.8]}
8... d6 {[%clk 0:02:51]} 9. h3 {[%clk 0:02:53.2]} 9... Rb8 {[%clk 0:02:50.2]}
10. a4 {[%clk 0:02:48.4]} 10... a5 {[%clk 0:02:49.5]} 11. Rb1 {[%clk 0:02:44.9]}
11... Nd7 {[%clk 0:02:46.8]} 12. Bd2 {[%clk 0:02:41.7]} 12... e5 {[%clk
0:02:46.3]} 13. Ne2 {[%clk 0:02:41.4]} 13... Ba6 {[%clk 0:02:40.3]} 14. Bc3
{[%clk 0:02:35.4]} 14... Qb6 {[%clk 0:01:54.4]} 15. Qd2 {[%clk 0:02:33.7]} 15...
f5 {[%clk 0:01:44.2]} 16. Bxa5 {[%clk 0:02:32.2]} 16... Qb7 {[%clk 0:01:44.6]}
17. Ng5 {[%clk 0:02:28.8]} 17... Rbe8 {[%clk 0:01:40]} 18. exf5 {[%clk
0:02:26.2]} 18... gxf5 {[%clk 0:01:37.4]} 19. Ng3 {[%clk 0:02:26.4]} 19... f4
{[%clk 0:01:26.8]} 20. N3e4 {[%clk 0:02:24.4]} 20... Qb8 {[%clk 0:01:24]} 21. b4
{[%clk 0:02:17.7]} 21... d5 {[%clk 0:01:17.5]} 22. bxc5 {[%clk 0:02:03.9]} 22...
Qa7 {[%clk 0:01:11.1]} 23. Nd6 {[%clk 0:02:03.7]} 23... Rb8 {[%clk 0:01:06]} 24.
Ne6 {[%clk 0:02:00.5]} 24... Rf6 {[%clk 0:00:54.9]} 25. Nxg7 {[%clk 0:01:48.6]}
25... Kxg7 {[%clk 0:00:55.8]} 26. Qe2 {[%clk 0:01:48.2]} 26... Nxc5 {[%clk
0:00:50.7]} 27. Qxe5 {[%clk 0:01:34]} 27... Rf8 {[%clk 0:00:13.7]} 28. Ne8+
{[%clk 0:01:19.9]} 28... Rxe8 {[%clk 0:00:13]} 29. Qxe8 {[%clk 0:01:20.8]} 29...
Rf7 {[%clk 0:00:05.6]} 30. Bb6 {[%clk 0:01:18.3]} 1-0

[Event "Early-Titled-Tuesday-Blitz-February-20-2024"]
[Site "Chess.com"]
[Date "2024.02.20"]
[Round "5"]
[White "InitiatingASC"]
[Black "bulletteemo"]
[Result "1-0"]
[WhiteElo "2400"]
[BlackElo "2579"]
[TimeControl "180+1"]
[EndTime "8:54:52 PST"]
[Termination "InitiatingASC won by resignation"]

1. d4 {[%clk 0:02:21.6]} 1... Nf6 {[%clk 0:01:39.3]} 2. c4 {[%clk 0:02:17.9]}
2... e6 {[%clk 0:01:39]} 3. Nc3 {[%clk 0:02:17.5]} 3... c5 {[%clk 0:01:39.2]} 4.
e3 {[%clk 0:02:16.4]} 4... b6 {[%clk 0:01:37.8]} 5. Nf3 {[%clk 0:02:16.4]} 5...
Bb7 {[%clk 0:01:38.3]} 6. Be2 {[%clk 0:02:16.1]} 6... d5 {[%clk 0:01:38.4]} 7.
O-O {[%clk 0:02:14.3]} 7... Be7 {[%clk 0:01:38]} 8. cxd5 {[%clk 0:02:05.5]} 8...
exd5 {[%clk 0:01:38.1]} 9. dxc5 {[%clk 0:02:05.7]} 9... bxc5 {[%clk 0:01:39]}
10. b3 {[%clk 0:02:03.5]} 10... O-O {[%clk 0:01:38.9]} 11. Ba3 {[%clk
0:02:02.4]} 11... Nbd7 {[%clk 0:01:38.9]} 12. Na4 {[%clk 0:02:02.5]} 12... Rc8
{[%clk 0:01:38.9]} 13. Rc1 {[%clk 0:02:02.1]} 13... Ne4 {[%clk 0:01:38.8]} 14.
Nd2 {[%clk 0:01:57.3]} 14... Nxd2 {[%clk 0:01:36.3]} 15. Qxd2 {[%clk 0:01:57.2]}
15... Bd6 {[%clk 0:01:36.9]} 16. Bf3 {[%clk 0:01:53.2]} 16... Qh4 {[%clk
0:01:36.4]} 17. g3 {[%clk 0:01:53.2]} 17... Qg5 {[%clk 0:01:36.7]} 18. Rfd1
{[%clk 0:01:51.6]} 18... Ne5 {[%clk 0:01:17.3]} 19. Bxd5 {[%clk 0:01:38.5]}
19... Ba6 {[%clk 0:00:56.3]} 20. f4 {[%clk 0:01:27.5]} 20... Qg4 {[%clk
0:00:48.9]} 21. fxe5 {[%clk 0:01:24.5]} 21... Bxe5 {[%clk 0:00:49.8]} 22. Nxc5
{[%clk 0:01:07.8]} 22... Be2 {[%clk 0:00:47.2]} 23. Re1 {[%clk 0:01:00.7]} 23...
Bb5 {[%clk 0:00:42.8]} 24. Qb4 {[%clk 0:00:53.4]} 24... Qh3 {[%clk 0:00:35.2]}
25. Qxb5 {[%clk 0:00:50.3]} 25... Rcd8 {[%clk 0:00:31.3]} 26. Bg2 {[%clk
0:00:49.7]} 26... Qg4 {[%clk 0:00:31]} 27. Nd3 {[%clk 0:00:43.8]} 27... Bf6
{[%clk 0:00:31]} 28. Bxf8 {[%clk 0:00:38.1]} 1-0

[Event "Early-Titled-Tuesday-Blitz-February-20-2024"]
[Site "Chess.com"]
[Date "2024.02.20"]
[Round "5"]
[White "tuschessCM1"]
[Black "Hovik_Hayrapetyan"]
[Result "0-1"]
[WhiteElo "2671"]
[BlackElo "2885"]
[TimeControl "180+1"]
[EndTime "8:54:59 PST"]
[Termination "Hovik_Hayrapetyan won by checkmate"]

1. c4 {[%clk 0:02:58]} 1... Nf6 {[%clk 0:02:58.6]} 2. Nc3 {[%clk 0:02:57.8]}
2... e5 {[%clk 0:02:48.3]} 3. g3 {[%clk 0:02:47.9]} 3... Bb4 {[%clk 0:02:43.7]}
4. Nd5 {[%clk 0:02:46]} 4... Nxd5 {[%clk 0:02:39.1]} 5. cxd5 {[%clk 0:02:46.9]}
5... O-O {[%clk 0:02:36.4]} 6. Bg2 {[%clk 0:02:47]} 6... d6 {[%clk 0:02:28.3]}
7. e3 {[%clk 0:02:44.1]} 7... a5 {[%clk 0:02:21.1]} 8. Ne2 {[%clk 0:02:40.2]}
8... Bg4 {[%clk 0:02:12.8]} 9. h3 {[%clk 0:02:37.4]} 9... Bxe2 {[%clk
0:02:03.4]} 10. Qxe2 {[%clk 0:02:38.3]} 10... f5 {[%clk 0:02:04]} 11. a3 {[%clk
0:02:08]} 11... Bc5 {[%clk 0:02:03.4]} 12. d3 {[%clk 0:02:08.5]} 12... Nd7
{[%clk 0:01:53.4]} 13. O-O {[%clk 0:01:58.3]} 13... Bb6 {[%clk 0:01:42.2]} 14.
Bd2 {[%clk 0:01:48.4]} 14... Qf6 {[%clk 0:01:40.8]} 15. Kh2 {[%clk 0:01:37.2]}
15... Rae8 {[%clk 0:01:32.2]} 16. Rae1 {[%clk 0:01:34.1]} 16... f4 {[%clk
0:01:26.4]} 17. Qg4 {[%clk 0:01:08.2]} 17... f3 {[%clk 0:01:16.4]} 18. Bh1
{[%clk 0:00:42.2]} 18... Nc5 {[%clk 0:01:12.9]} 19. Qc4 {[%clk 0:00:36.3]} 19...
e4 {[%clk 0:01:05.2]} 20. Bc3 {[%clk 0:00:32.8]} 20... Qh6 {[%clk 0:01:01]} 21.
dxe4 {[%clk 0:00:29.2]} 21... Rxe4 {[%clk 0:00:56.6]} 22. Bd4 {[%clk 0:00:27.3]}
22... Rf5 {[%clk 0:00:54.6]} 23. Qc2 {[%clk 0:00:11.3]} 23... Qxh3+ {[%clk
0:00:54]} 24. Kg1 {[%clk 0:00:12]} 24... Rh5 {[%clk 0:00:48.7]} 25. Bxf3 {[%clk
0:00:11]} 25... Qh2# {[%clk 0:00:48.7]} 0-1

[Event "Early-Titled-Tuesday-Blitz-February-20-2024"]
[Site "Chess.com"]
[Date "2024.02.20"]
[Round "5"]
[White "zurzan"]
[Black "Sofia_Blokhin"]
[Result "1-0"]
[WhiteElo "2070"]
[BlackElo "2239"]
[TimeControl "180+1"]
[EndTime "8:55:00 PST"]
[Termination "zurzan won by checkmate"]

1. c4 {[%clk 0:03:00.9]} 1... c5 {[%clk 0:02:59.3]} 2. Nc3 {[%clk 0:03:00.2]}
2... Nf6 {[%clk 0:02:58.9]} 3. g3 {[%clk 0:03:00.4]} 3... d5 {[%clk 0:02:59.2]}
4. cxd5 {[%clk 0:02:58.4]} 4... Nxd5 {[%clk 0:02:59.5]} 5. Bg2 {[%clk 0:02:59]}
5... Nc7 {[%clk 0:02:59.6]} 6. Nf3 {[%clk 0:02:54]} 6... Nc6 {[%clk 0:02:59.6]}
7. O-O {[%clk 0:02:52.6]} 7... e5 {[%clk 0:02:59.7]} 8. d3 {[%clk 0:02:52.7]}
8... Be7 {[%clk 0:02:58.9]} 9. a3 {[%clk 0:02:45.2]} 9... Be6 {[%clk 0:02:58.2]}
10. e3 {[%clk 0:02:41.2]} 10... O-O {[%clk 0:02:58.1]} 11. Qc2 {[%clk
0:02:36.3]} 11... Qd7 {[%clk 0:02:53.8]} 12. Re1 {[%clk 0:02:29.3]} 12... f6
{[%clk 0:02:52.4]} 13. Na4 {[%clk 0:02:17.1]} 13... b6 {[%clk 0:02:48.4]} 14.
Nd2 {[%clk 0:02:12.3]} 14... Rad8 {[%clk 0:02:44.9]} 15. d4 {[%clk 0:02:02.8]}
15... exd4 {[%clk 0:02:38.1]} 16. Bxc6 {[%clk 0:01:56.8]} 16... Qxc6 {[%clk
0:02:37.3]} 17. exd4 {[%clk 0:01:56.1]} 17... Rxd4 {[%clk 0:02:30.8]} 18. Nc3
{[%clk 0:01:53.4]} 18... Bh3 {[%clk 0:02:23.5]} 19. f3 {[%clk 0:01:30.9]} 19...
Re8 {[%clk 0:02:04.2]} 20. Nde4 {[%clk 0:01:30.3]} 20... f5 {[%clk 0:01:58]} 21.
Nf2 {[%clk 0:01:10.2]} 21... Qxf3 {[%clk 0:01:25.7]} 22. Nxh3 {[%clk 0:01:11.1]}
22... g5 {[%clk 0:01:08.2]} 23. Be3 {[%clk 0:01:04.4]} 23... g4 {[%clk
0:00:59.9]} 24. Nf4 {[%clk 0:01:02.9]} 24... Bg5 {[%clk 0:00:40]} 25. Qxf5
{[%clk 0:00:59.5]} 25... Bxf4 {[%clk 0:00:23.9]} 26. Bxf4 {[%clk 0:00:57.3]}
26... Rf8 {[%clk 0:00:12.9]} 27. Qg5+ {[%clk 0:00:55.3]} 27... Kf7 {[%clk
0:00:10.9]} 28. Re7# {[%clk 0:00:53.1]} 1-0

[Event "Early-Titled-Tuesday-Blitz-February-20-2024"]
[Site "Chess.com"]
[Date "2024.02.20"]
[Round "5"]
[White "SharapovEvgeny"]
[Black "NewBornNow"]
[Result "0-1"]
[WhiteElo "2554"]
[BlackElo "2795"]
[TimeControl "180+1"]
[EndTime "8:55:01 PST"]
[Termination "NewBornNow won by resignation"]

1. e4 {[%clk 0:03:00]} 1... c5 {[%clk 0:02:58.8]} 2. Nf3 {[%clk 0:02:59.7]} 2...
e6 {[%clk 0:02:59.1]} 3. c4 {[%clk 0:02:58.5]} 3... Nc6 {[%clk 0:02:56.8]} 4.
Nc3 {[%clk 0:02:58.3]} 4... Nd4 {[%clk 0:02:55.9]} 5. Be2 {[%clk 0:02:57.3]}
5... Ne7 {[%clk 0:02:49.4]} 6. O-O {[%clk 0:02:56.9]} 6... Nec6 {[%clk
0:02:49.2]} 7. d3 {[%clk 0:02:57]} 7... Be7 {[%clk 0:02:48.8]} 8. Nxd4 {[%clk
0:02:56.8]} 8... Nxd4 {[%clk 0:02:46.4]} 9. Kh1 {[%clk 0:02:56.6]} 9... O-O
{[%clk 0:02:45.5]} 10. f4 {[%clk 0:02:56.5]} 10... f5 {[%clk 0:02:44.7]} 11.
exf5 {[%clk 0:02:54]} 11... Nxe2 {[%clk 0:02:39.3]} 12. Qxe2 {[%clk 0:02:53.7]}
12... Rxf5 {[%clk 0:02:38.8]} 13. b3 {[%clk 0:02:47]} 13... b6 {[%clk
0:02:38.4]} 14. Bb2 {[%clk 0:02:46.8]} 14... Bb7 {[%clk 0:02:38.1]} 15. Rae1
{[%clk 0:02:43.9]} 15... Qf8 {[%clk 0:02:35.3]} 16. Qg4 {[%clk 0:02:30]} 16...
h5 {[%clk 0:02:34.1]} 17. Qg3 {[%clk 0:02:17.3]} 17... Qf7 {[%clk 0:02:07]} 18.
Ne4 {[%clk 0:02:14.8]} 18... Rf8 {[%clk 0:02:05.8]} 19. h4 {[%clk 0:02:00.1]}
19... d5 {[%clk 0:01:35.2]} 20. Ng5 {[%clk 0:01:56.7]} 20... Bxg5 {[%clk
0:01:35]} 21. hxg5 {[%clk 0:01:56.5]} 21... d4 {[%clk 0:01:30.7]} 22. Bc1 {[%clk
0:01:49.8]} 22... e5 {[%clk 0:01:27.2]} 23. Rf2 {[%clk 0:01:17]} 23... exf4
{[%clk 0:01:23.4]} 24. Qh4 {[%clk 0:01:14.2]} 24... f3 {[%clk 0:01:14.3]} 25. g4
{[%clk 0:01:13.7]} 25... hxg4 {[%clk 0:01:08.1]} 26. Kg1 {[%clk 0:01:07.4]}
26... Re8 {[%clk 0:00:58.8]} 27. Ref1 {[%clk 0:00:53.8]} 27... Re2 {[%clk
0:00:57.7]} 28. g6 {[%clk 0:00:40.7]} 28... Qxg6 {[%clk 0:00:54.7]} 29. Rxe2
{[%clk 0:00:38.5]} 29... fxe2 {[%clk 0:00:51.9]} 30. Qd8+ {[%clk 0:00:38.2]}
30... Kh7 {[%clk 0:00:51.7]} 31. Re1 {[%clk 0:00:30.5]} 31... Qh5 {[%clk
0:00:47.9]} 0-1

[Event "Early-Titled-Tuesday-Blitz-February-20-2024"]
[Site "Chess.com"]
[Date "2024.02.20"]
[Round "5"]
[White "Fighterman91"]
[Black "AsaHoffmann"]
[Result "1-0"]
[WhiteElo "2775"]
[BlackElo "2363"]
[TimeControl "180+1"]
[EndTime "8:55:02 PST"]
[Termination "Fighterman91 won by resignation"]

1. e3 {[%clk 0:03:00]} 1... d6 {[%clk 0:02:50.1]} 2. d4 {[%clk 0:02:56.1]} 2...
Nf6 {[%clk 0:02:49.4]} 3. Nf3 {[%clk 0:02:55.5]} 3... Bf5 {[%clk 0:02:48.9]} 4.
Bd3 {[%clk 0:02:51.9]} 4... Bg6 {[%clk 0:02:48.4]} 5. O-O {[%clk 0:02:50.6]}
5... Nbd7 {[%clk 0:02:48.3]} 6. Re1 {[%clk 0:02:49.6]} 6... e5 {[%clk
0:02:47.4]} 7. e4 {[%clk 0:02:40.1]} 7... Be7 {[%clk 0:02:46.2]} 8. Nc3 {[%clk
0:02:37.3]} 8... c6 {[%clk 0:02:46]} 9. a4 {[%clk 0:02:33.1]} 9... a5 {[%clk
0:02:43.8]} 10. h3 {[%clk 0:02:32]} 10... O-O {[%clk 0:02:43.2]} 11. Be3 {[%clk
0:02:27.2]} 11... Re8 {[%clk 0:02:42.9]} 12. Nh4 {[%clk 0:02:20.6]} 12... Bf8
{[%clk 0:02:41.7]} 13. Nxg6 {[%clk 0:02:20.9]} 13... hxg6 {[%clk 0:02:41.3]} 14.
Bf1 {[%clk 0:02:08.3]} 14... Qc7 {[%clk 0:02:40.4]} 15. Rc1 {[%clk 0:01:55.8]}
15... Nh5 {[%clk 0:02:38]} 16. d5 {[%clk 0:01:54.9]} 16... Be7 {[%clk
0:02:33.5]} 17. g3 {[%clk 0:01:46.2]} 17... Nhf6 {[%clk 0:02:27.6]} 18. Bc4
{[%clk 0:01:30.8]} 18... Nb6 {[%clk 0:02:19.4]} 19. Bb3 {[%clk 0:01:24.5]} 19...
c5 {[%clk 0:02:18.9]} 20. Qe2 {[%clk 0:01:08.1]} 20... Nh7 {[%clk 0:02:13.3]}
21. Nb5 {[%clk 0:00:58.7]} 21... Qd8 {[%clk 0:02:12]} 22. h4 {[%clk 0:00:39.6]}
22... Rc8 {[%clk 0:02:09.1]} 23. c4 {[%clk 0:00:39.3]} 23... Rf8 {[%clk
0:01:57.8]} 24. h5 {[%clk 0:00:35.3]} 24... gxh5 {[%clk 0:01:46]} 25. Qxh5
{[%clk 0:00:34.7]} 25... Nd7 {[%clk 0:01:45.2]} 26. Bc2 {[%clk 0:00:30.4]} 26...
Ndf6 {[%clk 0:01:39.7]} 27. Qe2 {[%clk 0:00:30.2]} 27... Ne8 {[%clk 0:01:38.3]}
28. Kg2 {[%clk 0:00:30.1]} 28... Bg5 {[%clk 0:01:34.3]} 29. Rh1 {[%clk
0:00:30.7]} 29... Bxe3 {[%clk 0:01:33.8]} 30. Qxe3 {[%clk 0:00:31.4]} 30... Nef6
{[%clk 0:01:31.3]} 31. Rh4 {[%clk 0:00:30]} 31... g6 {[%clk 0:01:30.6]} 32. Rch1
{[%clk 0:00:29.1]} 32... Nh5 {[%clk 0:01:23.9]} 33. Bd1 {[%clk 0:00:26.5]} 33...
Qg5 {[%clk 0:01:23.3]} 34. Qxg5 {[%clk 0:00:24.9]} 34... Nxg5 {[%clk 0:01:22.9]}
35. Bxh5 {[%clk 0:00:24.7]} 35... gxh5 {[%clk 0:01:22.6]} 36. Nxd6 {[%clk
0:00:25.1]} 36... Rcd8 {[%clk 0:01:19.5]} 37. Nf5 {[%clk 0:00:24.4]} 37... f6
{[%clk 0:01:08.9]} 38. Rxh5 {[%clk 0:00:24.1]} 1-0

[Event "Early-Titled-Tuesday-Blitz-February-20-2024"]
[Site "Chess.com"]
[Date "2024.02.20"]
[Round "5"]
[White "noblerone"]
[Black "ElephantChessGenius"]
[Result "1-0"]
[WhiteElo "2534"]
[BlackElo "2317"]
[TimeControl "180+1"]
[EndTime "8:55:05 PST"]
[Termination "noblerone won by checkmate"]

1. d4 {[%clk 0:03:00.9]} 1... d5 {[%clk 0:02:56]} 2. c4 {[%clk 0:03:00.9]} 2...
e6 {[%clk 0:02:56.1]} 3. Nc3 {[%clk 0:03:01.3]} 3... c6 {[%clk 0:02:54.7]} 4.
cxd5 {[%clk 0:02:59.3]} 4... exd5 {[%clk 0:02:54.3]} 5. Bf4 {[%clk 0:02:56.2]}
5... Nf6 {[%clk 0:02:51.5]} 6. Qc2 {[%clk 0:02:55.2]} 6... Bb4 {[%clk
0:02:47.6]} 7. e3 {[%clk 0:02:51.8]} 7... O-O {[%clk 0:02:46.9]} 8. Bd3 {[%clk
0:02:50.6]} 8... h6 {[%clk 0:02:43.3]} 9. Nf3 {[%clk 0:02:45.6]} 9... Re8 {[%clk
0:02:40.3]} 10. O-O {[%clk 0:02:43.7]} 10... Qe7 {[%clk 0:02:36]} 11. a3 {[%clk
0:02:37]} 11... Bd6 {[%clk 0:02:33.5]} 12. Bxd6 {[%clk 0:02:35]} 12... Qxd6
{[%clk 0:02:33.4]} 13. b4 {[%clk 0:02:32.7]} 13... a5 {[%clk 0:02:31.5]} 14.
Rab1 {[%clk 0:02:29]} 14... Nbd7 {[%clk 0:02:30.7]} 15. Na4 {[%clk 0:02:20.9]}
15... axb4 {[%clk 0:02:28.7]} 16. axb4 {[%clk 0:02:20.3]} 16... b5 {[%clk
0:02:28.8]} 17. Nc5 {[%clk 0:02:15.3]} 17... Nb6 {[%clk 0:02:28]} 18. Ne5 {[%clk
0:02:02.3]} 18... Nc4 {[%clk 0:02:24.7]} 19. Nxf7 {[%clk 0:01:01.4]} 19... Kxf7
{[%clk 0:02:17.3]} 20. Bg6+ {[%clk 0:00:59.6]} 20... Kg8 {[%clk 0:02:17.1]} 21.
Bxe8 {[%clk 0:00:58.4]} 21... Nxe8 {[%clk 0:02:16.9]} 22. Ra1 {[%clk 0:00:55]}
22... Rxa1 {[%clk 0:02:13.8]} 23. Rxa1 {[%clk 0:00:55.9]} 23... Nc7 {[%clk
0:02:13.6]} 24. h3 {[%clk 0:00:51.4]} 24... Kf7 {[%clk 0:01:39.8]} 25. Ra7
{[%clk 0:00:49.8]} 25... Kf6 {[%clk 0:01:35.8]} 26. Qh7 {[%clk 0:00:47.1]} 26...
Bf5 {[%clk 0:01:31.2]} 27. Qg8 {[%clk 0:00:43.2]} 27... Bg6 {[%clk 0:01:03.6]}
28. Qc8 {[%clk 0:00:25.1]} 28... Ne8 {[%clk 0:00:57.8]} 29. Rd7 {[%clk
0:00:20.6]} 29... Qf8 {[%clk 0:00:53.6]} 30. Qd8+ {[%clk 0:00:19]} 30... Kf5
{[%clk 0:00:51.1]} 31. Re7 {[%clk 0:00:13.9]} 31... Ncd6 {[%clk 0:00:49.6]} 32.
Re5# {[%clk 0:00:12.9]} 1-0